Workbook

Sheet Бюджет студента на месяц
B1: Месячный
A2: ="" ->  | B2: Бюджет студента
B5: =вычисления_диаграмм!$D$6 -> доходы за март: | E5: =вычисления_диаграмм!$D$7 -> расходы за март: | N5: =вычисления_диаграмм!$D$8 -> движение средств за март:
B6: =" "&вычисления_диаграмм!$F$6 -> 2 425p. | F6: =" "&вычисления_диаграмм!$F$7 -> 2 233p. | N6: =" "&вычисления_диаграмм!$F$8 -> 192p.
B26: ЯНВ | C26: Выберите первый бюджетный месяц
Q27: =ВыбранныйПериод -> МАР
B28: Остаток после расходов за месяц | D28: =ПервыйМесяц -> ЯНВ | E28: =СледующийМесяц -> ФЕВ | F28: МАР | G28: АПР | H28: МАЙ | I28: ИЮН | J28: ИЮЛ | K28: АВГ | L28: СЕН | M28: ОКТ | N28: НОЯ | O28: ДЕК | P28: ГОД | Q28: ПРОЦЕНТ УВЕЛИЧЕНИЯ
B29: Движение денежных средств | D29: =D38-D73 -> 169 | E29: 69 | F29: 192 | G29: 199 | H29: 204 | I29: -771 | J29: 124 | K29: 154 | L29: -721 | M29: 109 | N29: 34 | O29: -61 | P29: =SUM(D29:O29) -> -299 | Q29: =INDEX($D29:$P29,,СтолбецВыбранныйПериод)/INDEX($D$38:$P$38,,СтолбецВыбранныйПериод) -> 0.07917525773
B30: Движение денежных средств (с накоплением) | D30: =SUM($D$29:D$29) -> 169 | E30: =SUM($D$29:E$29) -> 238 | F30: =SUM($D$29:F$29) -> 430 | G30: =SUM($D$29:G$29) -> 629 | H30: =SUM($D$29:H$29) -> 833 | I30: =SUM($D$29:I$29) -> 62 | J30: =SUM($D$29:J$29) -> 186 | K30: =SUM($D$29:K$29) -> 340 | L30: =SUM($D$29:L$29) -> -381 | M30: =SUM($D$29:M$29) -> -272 | N30: =SUM($D$29:N$29) -> -238 | O30: =SUM($D$29:O$29) -> -299
B32: ДОХОДЫ ЗА МЕСЯЦ | D32: =ПервыйМесяц -> ЯНВ | E32: =СледующийМесяц -> ФЕВ | F32: МАР | G32: АПР | H32: МАЙ | I32: ИЮН | J32: ИЮЛ | K32: АВГ | L32: СЕН | M32: ОКТ | N32: НОЯ | O32: ДЕК | P32: ГОД | Q32: ПРОЦЕНТ УВЕЛИЧЕНИЯ
B33: Полученная финансовая помощь (гранты, стипендии, кредиты) | D33: 0 | E33: 0 | F33: 750 | G33: 750 | H33: 750 | I33: 750 | J33: 750 | K33: 750 | L33: 750 | M33: 750 | N33: 750 | O33: 750 | P33: =SUM(D33:O33) -> 7500 | Q33: =INDEX($D33:$P33,,СтолбецВыбранныйПериод)/INDEX($D$38:$P$38,,СтолбецВыбранныйПериод) -> 0.3092783505
B34: Зарплата после уплаты налогов | D34: 450 | E34: 450 | F34: 450 | G34: 450 | H34: 450 | I34: 450 | J34: 450 | K34: 450 | L34: 550 | M34: 350 | N34: 350 | O34: 350 | P34: 5200 | Q34: =INDEX($D34:$P34,,СтолбецВыбранныйПериод)/INDEX($D$38:$P$38,,СтолбецВыбранныйПериод) -> 0.1855670103
B35: Финансовая помощь семьи | D35: 200 | E35: 200 | F35: 1000 | G35: 350 | H35: 350 | I35: 350 | J35: 350 | K35: 350 | L35: 350 | M35: 350 | N35: 350 | O35: 350 | P35: 4550 | Q35: =INDEX($D35:$P35,,СтолбецВыбранныйПериод)/INDEX($D$38:$P$38,,СтолбецВыбранныйПериод) -> 0.412371134
B36: Траты из сбережений | D36: 500 | E36: 350 | F36: 150 | G36: 0 | H36: 0 | I36: 0 | J36: 0 | K36: 0 | L36: 0 | M36: 0 | N36: 0 | O36: 0 | P36: 1000 | Q36: =INDEX($D36:$P36,,СтолбецВыбранныйПериод)/INDEX($D$38:$P$38,,СтолбецВыбранныйПериод) -> 0.0618556701
B37: Другое (пособие на ребенка, социальная помощь, подарки и т. д.) | D37: 75 | E37: 75 | F37: 75 | G37: 75 | H37: 75 | I37: 75 | J37: 75 | K37: 75 | L37: 75 | M37: 75 | N37: 75 | O37: 75 | P37: 900 | Q37: =INDEX($D37:$P37,,СтолбецВыбранныйПериод)/INDEX($D$38:$P$38,,СтолбецВыбранныйПериод) -> 0.03092783505
B38: ОБЩИЕ ДОХОДЫ | D38: =SUM(D33:D37) -> 1225 | E38: 1075 | F38: 2425 | G38: 1625 | H38: 1625 | I38: 1625 | J38: 1625 | K38: 1625 | L38: 1725 | M38: 1525 | N38: 1525 | O38: 1525 | P38: =SUM(D38:O38) -> 19150 | Q38: =INDEX($D38:$P38,,СтолбецВыбранныйПериод)/INDEX($D$38:$P$38,,СтолбецВыбранныйПериод) -> 1
B40: РАСХОДЫ ЗА МЕСЯЦ | D40: =ПервыйМесяц -> ЯНВ | E40: =СледующийМесяц -> ФЕВ | F40: МАР | G40: АПР | H40: МАЙ | I40: ИЮН | J40: ИЮЛ | K40: АВГ | L40: СЕН | M40: ОКТ | N40: НОЯ | O40: ДЕК | P40: ГОД | Q40: ПРОЦЕНТ УВЕЛИЧЕНИЯ
B41: Проживание и питание | D41: =SUM(D42:D44) -> 565 | E41: 565 | F41: 565 | G41: 565 | H41: 565 | I41: 565 | J41: 565 | K41: 565 | L41: 565 | M41: 565 | N41: 565 | O41: 565 | P41: =SUM(D41:O41) -> 6780 | Q41: =INDEX($D41:$P41,,СтолбецВыбранныйПериод)/INDEX($D$73:$P$73,,СтолбецВыбранныйПериод) -> 0.2530228392
C42: Аренда, ипотека или плата за общежитие | D42: 315 | E42: 315 | F42: 315 | G42: 315 | H42: 315 | I42: 315 | J42: 315 | K42: 315 | L42: 315 | M42: 315 | N42: 315 | O42: 315 | P42: =SUM(D42:O42) -> 3780 | Q42: =INDEX($D42:$P42,,СтолбецВыбранныйПериод)/INDEX($D$73:$P$73,,СтолбецВыбранныйПериод) -> 0.1410658307
C43: Питание (расходы на продукты или столовую) | D43: 200 | E43: 200 | F43: 200 | G43: 200 | H43: 200 | I43: 200 | J43: 200 | K43: 200 | L43: 200 | M43: 200 | N43: 200 | O43: 200 | P43: =SUM(D43:O43) -> 2400 | Q43: =INDEX($D43:$P43,,СтолбецВыбранныйПериод)/INDEX($D$73:$P$73,,СтолбецВыбранныйПериод) -> 0.08956560681
C44: Коммунальные услуги (отопление, вода, электричество) | D44: 50 | E44: 50 | F44: 50 | G44: 50 | H44: 50 | I44: 50 | J44: 50 | K44: 50 | L44: 50 | M44: 50 | N44: 50 | O44: 50 | P44: =SUM(D44:O44) -> 600 | Q44: =INDEX($D44:$P44,,СтолбецВыбранныйПериод)/INDEX($D$73:$P$73,,СтолбецВыбранныйПериод) -> 0.0223914017
B46: Плата за обучение и сборы | D46: =SUM(D47:D48) -> 0 | E46: 0 | F46: 750 | G46: 0 | H46: 0 | I46: 650 | J46: 0 | K46: 0 | L46: 650 | M46: 0 | N46: 0 | O46: 0 | P46: =SUM(D46:O46) -> 2050 | Q46: =INDEX($D46:$P46,,СтолбецВыбранныйПериод)/INDEX($D$73:$P$73,,СтолбецВыбранныйПериод) -> 0.3358710255
C47: Плата за обучение | D47: 0 | E47: 0 | F47: 500 | G47: 0 | H47: 0 | I47: 500 | J47: 0 | K47: 0 | L47: 500 | M47: 0 | N47: 0 | O47: 0 | P47: =SUM(D47:O47) -> 1500 | Q47: =INDEX($D47:$P47,,СтолбецВыбранныйПериод)/INDEX($D$73:$P$73,,СтолбецВыбранныйПериод) -> 0.223914017
C48: Сборы | D48: 0 | E48: 0 | F48: 250 | G48: 0 | H48: 0 | I48: 150 | J48: 0 | K48: 0 | L48: 150 | M48: 0 | N48: 0 | O48: 0 | P48: =SUM(D48:O48) -> 550 | Q48: =INDEX($D48:$P48,,СтолбецВыбранныйПериод)/INDEX($D$73:$P$73,,СтолбецВыбранныйПериод) -> 0.1119570085
B50: Книги и принадлежности | D50: =SUM(D51:D52) -> 0 | E50: 0 | F50: 325 | G50: 20 | H50: 20 | I50: 325 | J50: 10 | K50: 10 | L50: 400 | M50: 15 | N50: 15 | O50: 15 | P50: =SUM(D50:O50) -> 1155 | Q50: =INDEX($D50:$P50,,СтолбецВыбранныйПериод)/INDEX($D$73:$P$73,,СтолбецВыбранныйПериод) -> 0.1455441111
C51: Учебники | D51: 0 | E51: 0 | F51: 225 | G51: 0 | H51: 0 | I51: 275 | J51: 0 | K51: 0 | L51: 325 | M51: 0 | N51: 0 | O51: 0 | P51: =SUM(D51:O51) -> 825 | Q51: =INDEX($D51:$P51,,СтолбецВыбранныйПериод)/INDEX($D$73:$P$73,,СтолбецВыбранныйПериод) -> 0.1007613077
C52: Учебные принадлежности | D52: 0 | E52: 0 | F52: 100 | G52: 20 | H52: 20 | I52: 50 | J52: 10 | K52: 10 | L52: 75 | M52: 15 | N52: 15 | O52: 15 | P52: =SUM(D52:O52) -> 330 | Q52: =INDEX($D52:$P52,,СтолбецВыбранныйПериод)/INDEX($D$73:$P$73,,СтолбецВыбранныйПериод) -> 0.0447828034
B54: Транспорт | D54: =SUM(D55:D58) -> 224 | E54: 174 | F54: 174 | G54: 219 | H54: 174 | I54: 174 | J54: 274 | K54: 219 | L54: 174 | M54: 174 | N54: 224 | O54: 269 | P54: =SUM(D54:O54) -> 2473 | Q54: =INDEX($D54:$P54,,СтолбецВыбранныйПериод)/INDEX($D$73:$P$73,,СтолбецВыбранныйПериод) -> 0.07792207792
C55: Газ, обслуживание | D55: 30 | E55: 30 | F55: 30 | G55: 75 | H55: 30 | I55: 30 | J55: 30 | K55: 75 | L55: 30 | M55: 30 | N55: 30 | O55: 75 | P55: =SUM(D55:O55) -> 495 | Q55: =INDEX($D55:$P55,,СтолбецВыбранныйПериод)/INDEX($D$73:$P$73,,СтолбецВыбранныйПериод) -> 0.01343484102
C56: Автомобиль | D56: 129 | E56: 129 | F56: 129 | G56: 129 | H56: 129 | I56: 129 | J56: 129 | K56: 129 | L56: 129 | M56: 129 | N56: 129 | O56: 129 | P56: =SUM(D56:O56) -> 1548 | Q56: =INDEX($D56:$P56,,СтолбецВыбранныйПериод)/INDEX($D$73:$P$73,,СтолбецВыбранныйПериод) -> 0.05776981639
C57: Расходы на проезд | D57: 15 | E57: 15 | F57: 15 | G57: 15 | H57: 15 | I57: 15 | J57: 15 | K57: 15 | L57: 15 | M57: 15 | N57: 15 | O57: 15 | P57: =SUM(D57:O57) -> 180 | Q57: =INDEX($D57:$P57,,СтолбецВыбранныйПериод)/INDEX($D$73:$P$73,,СтолбецВыбранныйПериод) -> 0.006717420511
C58: Поездки по выходным | D58: 50 | E58: 0 | F58: 0 | G58: 0 | H58: 0 | I58: 0 | J58: 100 | K58: 0 | L58: 0 | M58: 0 | N58: 50 | O58: 50 | P58: =SUM(D58:O58) -> 250 | Q58: =INDEX($D58:$P58,,СтолбецВыбранныйПериод)/INDEX($D$73:$P$73,,СтолбецВыбранныйПериод) -> 0
B60: По усмотрению | D60: =SUM(D61:D66) -> 69 | E60: 69 | F60: 169 | G60: 369 | H60: 419 | I60: 444 | J60: 419 | K60: 419 | L60: 394 | M60: 394 | N60: 419 | O60: 469 | P60: =SUM(D60:O60) -> 4053 | Q60: =INDEX($D60:$P60,,СтолбецВыбранныйПериод)/INDEX($D$73:$P$73,,СтолбецВыбранныйПериод) -> 0.07568293775
C61: Сбережения | D61: 0 | E61: 0 | F61: 0 | G61: 50 | H61: 100 | I61: 100 | J61: 100 | K61: 100 | L61: 75 | M61: 75 | N61: 100 | O61: 100 | P61: 800 | Q61: =INDEX($D61:$P61,,СтолбецВыбранныйПериод)/INDEX($D$73:$P$73,,СтолбецВыбранныйПериод) -> 0
C62: Мобильный телефон, Интернет, кабельное телевидение | D62: 69 | E62: 69 | F62: 69 | G62: 69 | H62: 69 | I62: 69 | J62: 69 | K62: 69 | L62: 69 | M62: 69 | N62: 69 | O62: 69 | P62: 828 | Q62: =INDEX($D62:$P62,,СтолбецВыбранныйПериод)/INDEX($D$73:$P$73,,СтолбецВыбранныйПериод) -> 0.03090013435
C63: Пожертвования | D63: 0 | E63: 0 | F63: 0 | G63: 0 | H63: 0 | I63: 25 | J63: 0 | K63: 0 | L63: 0 | M63: 0 | N63: 0 | O63: 50 | P63: 75 | Q63: =INDEX($D63:$P63,,СтолбецВыбранныйПериод)/INDEX($D$73:$P$73,,СтолбецВыбранныйПериод) -> 0
C64: Закуски, обеды | D64: 0 | E64: 0 | F64: 100 | G64: 100 | H64: 100 | I64: 100 | J64: 100 | K64: 100 | L64: 100 | M64: 100 | N64: 100 | O64: 100 | P64: 1000 | Q64: =INDEX($D64:$P64,,СтолбецВыбранныйПериод)/INDEX($D$73:$P$73,,СтолбецВыбранныйПериод) -> 0.0447828034
C65: Одежда | D65: 0 | E65: 0 | F65: 0 | G65: 50 | H65: 50 | I65: 50 | J65: 50 | K65: 50 | L65: 50 | M65: 50 | N65: 50 | O65: 50 | P65: 450 | Q65: =INDEX($D65:$P65,,СтолбецВыбранныйПериод)/INDEX($D$73:$P$73,,СтолбецВыбранныйПериод) -> 0
C66: Развлечения (кино, свидания, концерты) | D66: 0 | E66: 0 | F66: 0 | G66: 100 | H66: 100 | I66: 100 | J66: 100 | K66: 100 | L66: 100 | M66: 100 | N66: 100 | O66: 100 | P66: 900 | Q66: =INDEX($D66:$P66,,СтолбецВыбранныйПериод)/INDEX($D$73:$P$73,,СтолбецВыбранныйПериод) -> 0
B68: Другие расходы | D68: =SUM(D69:D71) -> 198 | E68: =SUM(E69:E71) -> 198 | F68: 250 | G68: 253 | H68: 243 | I68: 238 | J68: 233 | K68: 258 | L68: 263 | M68: 268 | N68: 268 | O68: 268 | P68: =SUM(D68:O68) -> 2938 | Q68: =INDEX($D68:$P68,,СтолбецВыбранныйПериод)/INDEX($D$73:$P$73,,СтолбецВыбранныйПериод) -> 0.1119570085
C69: Страхование (автомобиль, здоровье, жилье) | D69: 123 | E69: 123 | F69: 123 | G69: 123 | H69: 123 | I69: 123 | J69: 123 | K69: 123 | L69: 123 | M69: 123 | N69: 123 | O69: 123 | P69: =SUM(D69:O69) -> 1476 | Q69: =INDEX($D69:$P69,,СтолбецВыбранныйПериод)/INDEX($D$73:$P$73,,СтолбецВыбранныйПериод) -> 0.05508284819
C70: Ссуды, расходы по кредитной карте | D70: 0 | E70: 0 | F70: 52 | G70: 55 | H70: 45 | I70: 40 | J70: 35 | K70: 60 | L70: 65 | M70: 70 | N70: 70 | O70: 70 | P70: =SUM(D70:O70) -> 562 | Q70: =INDEX($D70:$P70,,СтолбецВыбранныйПериод)/INDEX($D$73:$P$73,,СтолбецВыбранныйПериод) -> 0.02328705777
C71: Другое | D71: 75 | E71: 75 | F71: 75 | G71: 75 | H71: 75 | I71: 75 | J71: 75 | K71: 75 | L71: 75 | M71: 75 | N71: 75 | O71: 75 | P71: =SUM(D71:O71) -> 900 | Q71: =INDEX($D71:$P71,,СтолбецВыбранныйПериод)/INDEX($D$73:$P$73,,СтолбецВыбранныйПериод) -> 0.03358710255
B73: ОБЩИЕ РАСХОДЫ | D73: =SUM(D41,D46,D50,D54,D60,D68) -> 1056 | E73: 1006 | F73: 2233 | G73: 1426 | H73: 1421 | I73: 2396 | J73: 1501 | K73: 1471 | L73: 2446 | M73: 1416 | N73: 1491 | O73: 1586 | P73: =SUM(D73:O73) -> 19449 | Q73: =INDEX($D73:$P73,,СтолбецВыбранныйПериод)/INDEX($D$73:$P$73,,СтолбецВыбранныйПериод) -> 1

Sheet вычисления_диаграмм (hidden)
A1: ***Этот лист должен оставаться СКРЫТЫМ***
D3: =IFERROR(LOWER(TEXT(VALUE(ВыбранныйПериод&" 1"),"ММММ")),"ГОД") -> март
D5: Заголовки динамических диаграмм
D6: ="доходы за "&D3&":" -> доходы за март: | F6: =TEXT(INDEX('Бюджет студента на месяц'!$D$38:$P$38,,СтолбецВыбранныйПериод),"# ###p.") -> 2 425p.
D7: ="расходы за "&D3&":" -> расходы за март: | F7: =TEXT(INDEX('Бюджет студента на месяц'!$D$73:$P$73,,СтолбецВыбранныйПериод),"# ###p.") -> 2 233p.
D8: ="движение средств за "&D3&":" -> движение средств за март: | E8: =INDEX('Бюджет студента на месяц'!D29:P29,ЗначениеПолосыПрокрутки) -> 192 | F8: =TEXT(E8,"# ###p.") -> 192p.
D12: =LOWER('Бюджет студента на месяц'!D28) -> янв | E12: =LOWER('Бюджет студента на месяц'!E28) -> фев | F12: =LOWER('Бюджет студента на месяц'!F28) -> мар | G12: =LOWER('Бюджет студента на месяц'!G28) -> апр | H12: =LOWER('Бюджет студента на месяц'!H28) -> май | I12: =LOWER('Бюджет студента на месяц'!I28) -> июн | J12: =LOWER('Бюджет студента на месяц'!J28) -> июл | K12: =LOWER('Бюджет студента на месяц'!K28) -> авг | L12: =LOWER('Бюджет студента на месяц'!L28) -> сен | M12: =LOWER('Бюджет студента на месяц'!M28) -> окт | N12: =LOWER('Бюджет студента на месяц'!N28) -> ноя | O12: =LOWER('Бюджет студента на месяц'!O28) -> дек | P12: =LOWER('Бюджет студента на месяц'!P28) -> год
C13: Значение полосы прокрутки: | D13: 3
C14: Диаграмма движения денежных средств: | D14: =IF(ВыбранныйПериод='Бюджет студента на месяц'!D$32,IF('Бюджет студента на месяц'!$D$29:$P$29>=0,'Бюджет студента на месяц'!$D$29:$P$29,NA()),NA()) ->  | E14: =IF(ВыбранныйПериод='Бюджет студента на месяц'!E$32,IF('Бюджет студента на месяц'!$D$29:$P$29>=0,'Бюджет студента на месяц'!$D$29:$P$29,NA()),NA()) ->  | F14: =IF(ВыбранныйПериод='Бюджет студента на месяц'!F$32,IF('Бюджет студента на месяц'!$D$29:$P$29>=0,'Бюджет студента на месяц'!$D$29:$P$29,NA()),NA()) -> 192 | G14: =IF(ВыбранныйПериод='Бюджет студента на месяц'!G$32,IF('Бюджет студента на месяц'!$D$29:$P$29>=0,'Бюджет студента на месяц'!$D$29:$P$29,NA()),NA()) ->  | H14: =IF(ВыбранныйПериод='Бюджет студента на месяц'!H$32,IF('Бюджет студента на месяц'!$D$29:$P$29>=0,'Бюджет студента на месяц'!$D$29:$P$29,NA()),NA()) ->  | I14: =IF(ВыбранныйПериод='Бюджет студента на месяц'!I$32,IF('Бюджет студента на месяц'!$D$29:$P$29>=0,'Бюджет студента на месяц'!$D$29:$P$29,NA()),NA()) ->  | J14: =IF(ВыбранныйПериод='Бюджет студента на месяц'!J$32,IF('Бюджет студента на месяц'!$D$29:$P$29>=0,'Бюджет студента на месяц'!$D$29:$P$29,NA()),NA()) ->  | K14: =IF(ВыбранныйПериод='Бюджет студента на месяц'!K$32,IF('Бюджет студента на месяц'!$D$29:$P$29>=0,'Бюджет студента на месяц'!$D$29:$P$29,NA()),NA()) ->  | L14: =IF(ВыбранныйПериод='Бюджет студента на месяц'!L$32,IF('Бюджет студента на месяц'!$D$29:$P$29>=0,'Бюджет студента на месяц'!$D$29:$P$29,NA()),NA()) ->  | M14: =IF(ВыбранныйПериод='Бюджет студента на месяц'!M$32,IF('Бюджет студента на месяц'!$D$29:$P$29>=0,'Бюджет студента на месяц'!$D$29:$P$29,NA()),NA()) ->  | N14: =IF(ВыбранныйПериод='Бюджет студента на месяц'!N$32,IF('Бюджет студента на месяц'!$D$29:$P$29>=0,'Бюджет студента на месяц'!$D$29:$P$29,NA()),NA()) ->  | O14: =IF(ВыбранныйПериод='Бюджет студента на месяц'!O$32,IF('Бюджет студента на месяц'!$D$29:$P$29>=0,'Бюджет студента на месяц'!$D$29:$P$29,NA()),NA()) ->  | P14: =IF(ВыбранныйПериод='Бюджет студента на месяц'!P$32,IF('Бюджет студента на месяц'!$D$29:$P$29>=0,'Бюджет студента на месяц'!$D$29:$P$29,NA()),NA()) -> 
C15: Накопительное значение: | D15: =IF(ВыбранныйПериод='Бюджет студента на месяц'!D$32,IF('Бюджет студента на месяц'!$D$29:$P$29<0,'Бюджет студента на месяц'!$D$29:$P$29,NA()),NA()) ->  | E15: =IF(ВыбранныйПериод='Бюджет студента на месяц'!E$32,IF('Бюджет студента на месяц'!$D$29:$P$29<0,'Бюджет студента на месяц'!$D$29:$P$29,NA()),NA()) ->  | F15: =IF(ВыбранныйПериод='Бюджет студента на месяц'!F$32,IF('Бюджет студента на месяц'!$D$29:$P$29<0,'Бюджет студента на месяц'!$D$29:$P$29,NA()),NA()) ->  | G15: =IF(ВыбранныйПериод='Бюджет студента на месяц'!G$32,IF('Бюджет студента на месяц'!$D$29:$P$29<0,'Бюджет студента на месяц'!$D$29:$P$29,NA()),NA()) ->  | H15: =IF(ВыбранныйПериод='Бюджет студента на месяц'!H$32,IF('Бюджет студента на месяц'!$D$29:$P$29<0,'Бюджет студента на месяц'!$D$29:$P$29,NA()),NA()) ->  | I15: =IF(ВыбранныйПериод='Бюджет студента на месяц'!I$32,IF('Бюджет студента на месяц'!$D$29:$P$29<0,'Бюджет студента на месяц'!$D$29:$P$29,NA()),NA()) ->  | J15: =IF(ВыбранныйПериод='Бюджет студента на месяц'!J$32,IF('Бюджет студента на месяц'!$D$29:$P$29<0,'Бюджет студента на месяц'!$D$29:$P$29,NA()),NA()) ->  | K15: =IF(ВыбранныйПериод='Бюджет студента на месяц'!K$32,IF('Бюджет студента на месяц'!$D$29:$P$29<0,'Бюджет студента на месяц'!$D$29:$P$29,NA()),NA()) ->  | L15: =IF(ВыбранныйПериод='Бюджет студента на месяц'!L$32,IF('Бюджет студента на месяц'!$D$29:$P$29<0,'Бюджет студента на месяц'!$D$29:$P$29,NA()),NA()) ->  | M15: =IF(ВыбранныйПериод='Бюджет студента на месяц'!M$32,IF('Бюджет студента на месяц'!$D$29:$P$29<0,'Бюджет студента на месяц'!$D$29:$P$29,NA()),NA()) ->  | N15: =IF(ВыбранныйПериод='Бюджет студента на месяц'!N$32,IF('Бюджет студента на месяц'!$D$29:$P$29<0,'Бюджет студента на месяц'!$D$29:$P$29,NA()),NA()) ->  | O15: =IF(ВыбранныйПериод='Бюджет студента на месяц'!O$32,IF('Бюджет студента на месяц'!$D$29:$P$29<0,'Бюджет студента на месяц'!$D$29:$P$29,NA()),NA()) ->  | P15: =IF(ВыбранныйПериод='Бюджет студента на месяц'!P$32,IF('Бюджет студента на месяц'!$D$29:$P$29<0,'Бюджет студента на месяц'!$D$29:$P$29,NA()),NA()) -> 
C18: ДАННЫЕ ДЛЯ ДИАГРАММЫ ДОХОДОВ
C19: Полученная финансовая помощь (гранты, стипендии, кредиты) | D19: ='Бюджет студента на месяц'!Q33 -> 0.3092783505
C20: Зарплата после уплаты налогов | D20: ='Бюджет студента на месяц'!Q34 -> 0.1855670103
C21: Финансовая помощь семьи | D21: ='Бюджет студента на месяц'!Q35 -> 0.412371134
C22: Траты из сбережений | D22: ='Бюджет студента на месяц'!Q36 -> 0.0618556701
C23: Другое (пособие на ребенка, социальная помощь, подарки и т. д.) | D23: ='Бюджет студента на месяц'!Q37 -> 0.03092783505
